fUSD/lending_fUSD_20250208
["ID","MTS","AMOUNT","RATE_DAILY","PERIOD"]
[352267768,1739021456046,-500.0,0.00010528,2]
[352267769,1739021456055,-500.0,0.00010528,2]
[352267770,1739021456064,-500.0,0.00010528,2]
[352267771,1739021456073,-643.97,0.00010528,2]
[352267772,1739021456083,-908.34,0.00010528,2]
[352267773,1739021456095,-936.57,0.00010528,2]
[352267775,1739021456105,-742.91,0.00010528,2]
[352267777,1739021456114,-500.0,0.00010528,2]
[352267778,1739021456123,-900.55,0.00010528,2]
[352267780,1739021456133,-500.0,0.00010528,2]
[352267781,1739021456142,-500.0,0.00010528,2]
[352267782,1739021456151,-908.88,0.00010528,2]
[352267783,1739021456160,-500.0,0.00010528,2]
[352267784,1739021456170,-978.2,0.00010528,2]
[352267785,1739021456180,-908.42,0.00010528,2]
[352267786,1739021456190,-732.41,0.00010528,2]
[352267787,1739021456200,-500.0,0.00010528,2]
[352267788,1739021456213,-1214.33,0.00010528,2]
[352267789,1739021456223,-554.39,0.00010528,2]
[352267790,1739021456232,-1010.15,0.00010528,2]
[352267791,1739021456243,-2428.03,0.00010528,2]
[352267792,1739021456252,-500.0,0.00010528,2]
[352267793,1739021456262,-884.5,0.00010528,2]
[352267794,1739021456272,-1200.16,0.00010528,2]
[352267795,1739021456281,-5420.56,0.00010528,2]
[352267796,1739021456290,-1258.75,0.00010528,2]
[352267797,1739021456300,-1118.69,0.00010528,2]
[352267798,1739021456309,-1588.33,0.00010528,2]
[352267799,1739021456319,-896.11,0.00010528,2]
[352267800,1739021456328,-500.0,0.00010528,2]
[352267801,1739021456338,-794.47,0.00010528,2]
[352267802,1739021456349,-1439.17,0.00010528,2]
[352267803,1739021456358,-500.0,0.00010528,2]
[352267804,1739021456367,-571.6,0.00010528,2]
[352267805,1739021456376,-920.36,0.00010528,2]
[352267806,1739021456386,-1334.12,0.00010528,2]
[352267807,1739021456395,-1217.52,0.00010528,2]
[352267808,1739021456404,-1131.43,0.00010528,2]
[352267809,1739021456413,-588.17,0.00010528,2]
[352267810,1739021456422,-991.46,0.00010528,2]
[352267811,1739021456432,-500.0,0.00010528,2]
[352267812,1739021456441,-1017.16,0.00010528,2]
[352267813,1739021456451,-733.79,0.00010528,2]
[352267814,1739021456460,-3270.86,0.00010528,2]
[352267815,1739021456469,-569.88,0.00010528,2]
[352267816,1739021456479,-1422.78,0.00010528,2]
[352267817,1739021456489,-1321.24,0.00010528,2]
[352267818,1739021456499,-500.0,0.00010528,2]
[352267819,1739021456509,-2291.76,0.00010528,2]
[352267820,1739021456518,-1009.53,0.00010528,2]
[352267821,1739021456528,-500.0,0.00010528,2]
[352267822,1739021456537,-1020.34,0.00010528,2]
[352267823,1739021456546,-560.48,0.00010528,2]
[352267824,1739021456556,-518.57,0.00010528,2]
[352267825,1739021456565,-888.74,0.00010528,2]
[352267826,1739021456575,-6776.61,0.00010528,2]
[352267827,1739021456585,-1427.19,0.00010528,2]
[352267828,1739021456599,-500.0,0.00010528,2]
[352267829,1739021456609,-2658.58,0.00010528,2]
[352267830,1739021456619,-1649.01,0.00010528,2]
[352267831,1739021456630,-797.73,0.00010528,2]
[352267832,1739021456639,-969.25,0.00010528,2]
[352267833,1739021456650,-1236.49,0.00010528,2]
[352267834,1739021456659,-1376.87,0.00010528,2]
[352267835,1739021456670,-1150.23,0.00010528,2]
[352267836,1739021456680,-500.0,0.00010528,2]
[352267837,1739021456690,-1458.93,0.00010528,2]
[352267838,1739021456699,-2061.0,0.00010528,2]
[352267839,1739021456708,-1575.14,0.00010528,2]
[352267840,1739021456718,-1087.69,0.00010528,2]
[352267841,1739021456727,-1008.68,0.00010528,2]
[352267842,1739021456738,-1024.98,0.00010528,2]
[352267843,1739021456747,-1276.35,0.00010528,2]
[352267844,1739021456756,-5315.42,0.00010528,2]
[352267845,1739021456766,-500.0,0.00010528,2]
[352267846,1739021456775,-1639.56,0.00010528,2]
[352267847,1739021456784,-887.92,0.00010528,2]
[352267848,1739021456794,-866.96,0.00010528,2]
[352267849,1739021456803,-1491.22,0.00010528,2]
[352267850,1739021456813,-500.0,0.00010528,2]
[352267851,1739021456822,-2150.42,0.00010528,2]
[352267852,1739021456832,-1999.01,0.00010528,2]
[352267853,1739021456845,-500.0,0.00010528,2]
[352267854,1739021456855,-500.0,0.00010528,2]
[352267855,1739021456864,-500.0,0.00010528,2]
[352267856,1739021456874,-1238.85,0.00010528,2]
[352267857,1739021456883,-500.0,0.00010528,2]
[352267858,1739021456893,-1772.33,0.00010528,2]
[352267859,1739021456903,-723.22,0.00010528,2]
[352267860,1739021456912,-524.48,0.00010528,2]
[352267861,1739021456922,-1821.75,0.00010528,2]
[352267862,1739021456932,-500.0,0.00010528,2]
[352267863,1739021456942,-2569.9,0.00010528,2]
[352267864,1739021456951,-500.0,0.00010528,2]
[352267865,1739021456961,-979.84,0.00010528,2]
[352267866,1739021456970,-1589.1,0.00010528,2]
[352267867,1739021456983,-500.0,0.00010528,2]
[352267868,1739021456993,-3567.02,0.00010528,2]
[352267869,1739021457002,-500.0,0.00010528,2]
[352267870,1739021457011,-500.0,0.00010528,2]
[352267871,1739021457020,-646.94,0.00010528,2]
[352267872,1739021457029,-1268.56,0.00010528,2]
[352267873,1739021457038,-1774.78,0.00010528,2]
[352267874,1739021457047,-421.38023676,0.00010528,2]
[352267875,1739021457057,-500.0,0.00010528,2]
[352267876,1739021457067,-1824.03,0.00010528,2]
[352267877,1739021457076,-2166.29,0.00010528,2]
[352267878,1739021457086,-718.34,0.00010528,2]
[352267879,1739021457098,-1000.0,0.00010528,2]
[352267880,1739021457108,-2367.62,0.00010528,2]
[352267881,1739021457117,-967.44,0.00010528,2]
[352267882,1739021457127,-996.19,0.00010528,2]
[352267883,1739021457136,-978.89,0.00010528,2]
[352267884,1739021457145,-1164.39,0.00010528,2]
[352267885,1739021457155,-1326.59,0.00010528,2]
[352267886,1739021457163,-1201.48,0.00010528,2]
[352267887,1739021457173,-2912.96,0.00010528,2]
[352267888,1739021457182,-1010.66,0.00010528,2]
[352267889,1739021457192,-500.0,0.00010528,2]
[352267890,1739021457203,-1794.88,0.00010528,2]
[352267891,1739021457214,-1069.33,0.00010528,2]
[352267892,1739021457223,-678.89,0.00010528,2]
[352267893,1739021457233,-1002.55,0.00010528,2]
[352267894,1739021457242,-2141.6,0.00010528,2]
[352267895,1739021457252,-564.37,0.00010528,2]
[352267896,1739021457261,-706.03,0.00010528,2]
[352267897,1739021457270,-670.39,0.00010528,2]
[352267898,1739021457281,-830.2,0.00010528,2]
[352267899,1739021457290,-174.01,0.00010528,2]
[352267900,1739021457300,-500.0,0.00010529,2]
[352267901,1739021457309,-500.0,0.00010529,2]
[352267902,1739021457319,-500.0,0.00010529,2]
[352267903,1739021457329,-584.56776597,0.00010529,2]
[352267904,1739021457338,-500.0,0.00010529,2]
[352267905,1739021457349,-500.0,0.00010529,2]
[352267906,1739021457358,-500.0,0.00010529,2]
[352267907,1739021457368,-500.0,0.00010529,2]
[352267908,1739021457377,-500.0,0.00010529,2]
[352267909,1739021457386,-500.0,0.00010529,2]
[352267910,1739021457395,-500.0,0.00010529,2]
[352267911,1739021457405,-500.0,0.00010529,2]
[352267912,1739021457414,-500.0,0.00010529,2]
[352267913,1739021457423,-500.0,0.00010529,2]
[352267914,1739021457432,-509.84,0.00010529,2]
[352267915,1739021457442,-500.0,0.00010529,2]
[352267916,1739021457451,-500.0,0.00010529,2]
[352267917,1739021457461,-500.0,0.00010529,2]
[352267918,1739021457470,-1034.4,0.00010529,2]
[352267919,1739021457479,-500.0,0.00010529,2]
[352267920,1739021457488,-1017.61,0.00010529,2]
[352267921,1739021457498,-1000.22,0.00010529,2]
[352267922,1739021457508,-500.0,0.00010529,2]
[352267923,1739021457518,-500.0,0.00010529,2]
[352267924,1739021457527,-892.76,0.00010529,2]
[352267925,1739021457537,-500.0,0.00010529,2]
[352267926,1739021457546,-500.0,0.00010529,2]
[352267927,1739021457555,-500.0,0.00010529,2]
[352267928,1739021457564,-500.0,0.00010529,2]
[352267929,1739021457573,-538.2,0.00010529,2]
[352267930,1739021457582,-350.54,0.00010557,2]
[352267931,1739021457592,-500.0,0.00010664,2]
[352267932,1739021457602,-500.0,0.00010664,2]
[352267933,1739021457611,-500.0,0.00010664,2]
[352267934,1739021457619,-500.0,0.00010664,2]
[352267935,1739021457629,-500.0,0.00010664,2]
[352267936,1739021457638,-500.0,0.00010664,2]
[352267937,1739021457646,-500.0,0.00010664,2]
[352267938,1739021457656,-500.0,0.00010664,2]
[352267939,1739021457665,-500.0,0.00010664,2]
[352267940,1739021457674,-500.0,0.00010664,2]
[352267941,1739021457684,-506.43599802,0.00010664,2]
[352267942,1739021457693,-515.18,0.00010664,2]
[352267943,1739021457702,-541.35,0.00010664,2]
[352267944,1739021457711,-500.0,0.00010664,2]
[352267945,1739021457721,-500.0,0.00010664,2]
[352267946,1739021457730,-390.78744761,0.00010664,2]
[352267947,1739021457740,-500.0,0.00010664,2]
[352267948,1739021457750,-320.17144108,0.00010664,2]
[352267949,1739021457759,-500.0,0.00010664,2]
[352267950,1739021457769,-500.0,0.00010664,2]
[352267951,1739021457778,-500.0,0.00010664,2]
[352267952,1739021457788,-500.0,0.00010664,2]
[352267953,1739021457797,-500.0,0.00010664,2]
[352267954,1739021457806,-451.62113119,0.00010664,2]
[352267955,1739021457815,-500.0,0.00010664,2]
[352267956,1739021457825,-500.0,0.00010664,2]
[352267957,1739021457846,-500.0,0.00010664,2]
[352267958,1739021457858,-500.0,0.00010664,2]
[352267959,1739021457869,-500.0,0.00010664,2]
[352267960,1739021457879,-500.0,0.00010664,2]
[352267961,1739021457892,-500.0,0.00010664,2]
[352267962,1739021457902,-501.77,0.00010664,2]
[352267963,1739021457911,-500.0,0.00010664,2]
[352267964,1739021457920,-403.85562607,0.00010664,2]
[352267965,1739021457930,-248.49019751,0.00010664,2]
[352267966,1739021457939,-500.0,0.00010664,2]
[352267967,1739021457948,-500.0,0.00010664,2]
[352267968,1739021457957,-500.0,0.00010664,2]
[352267969,1739021457966,-500.0,0.00010664,2]
[352267970,1739021457976,-500.0,0.00010664,2]
[352267971,1739021457985,-500.0,0.00010664,2]
[352267972,1739021457995,-500.0,0.00010664,2]
[352267973,1739021458005,-500.0,0.00010664,2]
[352267974,1739021458014,-500.0,0.00010664,2]
[352267975,1739021458025,-500.0,0.00010664,2]
[352267976,1739021458039,-500.0,0.00010664,2]
[352267977,1739021458049,-500.0,0.00010664,2]
[352267978,1739021458059,-500.0,0.00010664,2]
[352267979,1739021458069,-193.75208694,0.00010664,2]
[352267980,1739021458078,-500.0,0.00010664,2]
[352267981,1739021458088,-500.0,0.00010664,2]
[352267982,1739021458099,-500.0,0.00010664,2]
[352267983,1739021458108,-500.0,0.00010664,2]
[352267984,1739021458117,-500.0,0.00010664,2]
[352267985,1739021458127,-530.52758283,0.00010664,2]
[352267986,1739021458135,-500.0,0.00010664,2]
[352267987,1739021458144,-792.08,0.00010664,2]
[352267988,1739021458153,-551.13,0.00010664,2]
[352267989,1739021458163,-500.0,0.00010664,2]
[352267990,1739021458173,-500.0,0.00010664,2]
[352267991,1739021458182,-500.0,0.00010664,2]
[352267992,1739021458192,-500.0,0.00010664,2]
[352267993,1739021458202,-1089.73,0.00010664,2]
[352267994,1739021458216,-733.81,0.00010664,2]
[352267995,1739021458226,-973.85,0.00010664,2]
[352267996,1739021458236,-2109.14,0.00010664,2]
[352267997,1739021458245,-933.15,0.00010664,2]
[352267998,1739021458256,-500.0,0.00010664,2]
[352267999,1739021458266,-613.73,0.00010664,2]
[352268000,1739021458275,-2019.15,0.00010664,2]
[352268001,1739021458285,-693.14,0.00010664,2]
[352268002,1739021458294,-500.0,0.00010664,2]
[352268003,1739021458304,-1443.42,0.00010664,2]
[352268004,1739021458313,-1450.66,0.00010664,2]
[352268005,1739021458322,-500.0,0.00010664,2]
[352268006,1739021458332,-500.0,0.00010664,2]
[352268007,1739021458342,-658.45,0.00010664,2]
[352268008,1739021458351,-1943.65,0.00010664,2]
[352268009,1739021458361,-500.0,0.00010664,2]
[352268010,1739021458370,-2382.04,0.00010664,2]
[352268011,1739021458380,-1027.19,0.00010664,2]
[352268012,1739021458389,-500.0,0.00010664,2]
[352268013,1739021458398,-895.93,0.00010664,2]
[352268014,1739021458412,-2442.04,0.00010664,2]
[352268015,1739021458422,-500.0,0.00010664,2]
[352268016,1739021458431,-936.62,0.00010664,2]
[352268017,1739021458441,-1437.26,0.00010664,2]
[352268018,1739021458451,-624.75,0.00010664,2]
[352268019,1739021458460,-500.0,0.00010664,2]
[352268020,1739021458469,-518.91,0.00010664,2]
[352268021,1739021458478,-680.23,0.00010664,2]
[352268022,1739021458488,-500.0,0.00010664,2]
[352268023,1739021458497,-500.0,0.00010664,2]
[352268024,1739021458507,-1448.65,0.00010664,2]
[352268025,1739021458516,-604.61,0.00010664,2]
[352268026,1739021458526,-2263.66,0.00010664,2]
[352268027,1739021458535,-614.55,0.00010664,2]
[352268028,1739021458544,-500.0,0.00010664,2]
[352268029,1739021458554,-1506.761465,0.00010665,2]
[352268030,1739021458563,-1760.383417,0.00010665,2]
[352268031,1739021458572,-684.67,0.00010665,2]
[352268032,1739021458581,-500.0,0.00010665,2]
[352268033,1739021458592,-715.56,0.00010665,2]
[352268034,1739021458601,-500.0,0.00010665,2]
[352268035,1739021458610,-500.0,0.00010665,2]
[352268036,1739021458619,-500.0,0.00010665,2]
[352268037,1739021458629,-930.79,0.00010665,2]
[352268038,1739021458639,-500.0,0.00010665,2]
[352268039,1739021458648,-225.93523656,0.00010665,2]
[352268040,1739021458657,-500.0,0.00010665,2]
[352268041,1739021458666,-734.58,0.00010665,2]
[352268042,1739021458676,-500.0,0.00010665,2]
[352268043,1739021458685,-500.0,0.00010665,2]
[352268044,1739021458695,-584.98,0.00010665,2]
[352268045,1739021458704,-1132.16,0.00010665,2]
[352268046,1739021458713,-887.38,0.00010665,2]
[352268047,1739021458722,-613.72,0.00010665,2]
[352268048,1739021458731,-500.0,0.00010665,2]
[352268049,1739021458741,-940.72,0.00010665,2]
[352268050,1739021458750,-500.0,0.00010665,2]
[352268051,1739021458759,-500.0,0.00010665,2]
[352268052,1739021458768,-932.43,0.00010665,2]
[352268053,1739021458781,-500.0,0.00010665,2]
[352268054,1739021458790,-500.0,0.00010665,2]
[352268055,1739021458799,-500.0,0.00010665,2]
[352268056,1739021458808,-500.0,0.00010665,2]
[352268057,1739021458818,-152.672805,0.00010665,2]
[352268058,1739021458827,-500.0,0.00010665,2]
[352268059,1739021458836,-1118.23,0.00010665,2]
[352268060,1739021458846,-500.0,0.00010665,2]
[352268061,1739021458856,-153.55625,0.00010665,2]
[352268062,1739021458865,-760.9,0.00010665,2]
[352268063,1739021458874,-500.0,0.00010665,2]
[352268064,1739021458883,-500.0,0.00010665,2]
[352268065,1739021458892,-500.0,0.00010665,2]
[352268066,1739021458902,-755.08,0.00010665,2]
[352268067,1739021458911,-701.54,0.00010665,2]
[352268068,1739021458920,-500.0,0.00010665,2]
[352268069,1739021458929,-500.0,0.00010665,2]
[352268070,1739021458938,-500.0,0.00010665,2]
[352268071,1739021458948,-926.98,0.00010665,2]
[352268072,1739021458958,-500.0,0.00010665,2]
[352268073,1739021458967,-500.0,0.00010665,2]
[352268074,1739021458976,-500.0,0.00010665,2]
[352268075,1739021458985,-500.0,0.00010665,2]
[352268076,1739021458995,-825.95,0.00010665,2]
[352268077,1739021459004,-500.0,0.00010665,2]
[352268078,1739021459015,-500.0,0.00010665,2]
[352268079,1739021459025,-569.58,0.00010665,2]
[352268080,1739021459035,-500.0,0.00010665,2]
[352268081,1739021459045,-500.0,0.00010665,2]
[352268082,1739021459054,-1113.59,0.00010665,2]
[352268083,1739021459064,-500.0,0.00010665,2]
[352268084,1739021459074,-500.0,0.00010665,2]
[352268085,1739021459083,-500.0,0.00010665,2]
[352268086,1739021459094,-500.0,0.00010665,2]
[352268087,1739021459103,-500.0,0.00010665,2]
[352268088,1739021459113,-1098.41,0.00010665,2]
[352268089,1739021459122,-500.0,0.00010665,2]
[352268090,1739021459131,-500.0,0.00010665,2]
[352268091,1739021459142,-500.0,0.00010665,2]
[352268092,1739021459152,-878.51,0.00010665,2]
[352268093,1739021459161,-524.67,0.00010665,2]
[352268094,1739021459170,-589.79,0.00010665,2]
[352268095,1739021459179,-500.0,0.00010665,2]
[352268096,1739021459188,-500.0,0.00010665,2]
[352268097,1739021459199,-776.8,0.00010665,2]
[352268098,1739021459211,-1439.01,0.00010665,2]
[352268099,1739021459220,-977.59,0.00010665,2]
[352268100,1739021459229,-500.0,0.00010665,2]
[352268101,1739021459238,-518.87,0.00010665,2]
[352268102,1739021459248,-586.18,0.00010665,2]
[352268103,1739021459257,-500.0,0.00010665,2]
[352268104,1739021459267,-500.0,0.00010665,2]
[352268105,1739021459277,-855.52,0.00010665,2]
[352268106,1739021459288,-913.73,0.00010665,2]
[352268107,1739021459297,-548.56,0.00010665,2]
[352268108,1739021459306,-500.0,0.00010665,2]
[352268109,1739021459316,-500.0,0.00010665,2]
[352268110,1739021459326,-500.0,0.00010665,2]
[352268111,1739021459335,-942.25,0.00010665,2]
[352268112,1739021459344,-500.0,0.00010665,2]
[352268113,1739021459354,-500.0,0.00010665,2]
[352268114,1739021459363,-500.0,0.00010665,2]
[352268115,1739021459373,-643.97,0.00010665,2]
[352268116,1739021459382,-908.34,0.00010665,2]
[352268117,1739021459391,-936.57,0.00010665,2]
[352268118,1739021459401,-742.91,0.00010665,2]
[352268119,1739021459410,-441.97625777,0.00010665,2]
[352268120,1739021459420,-900.55,0.00010665,2]
[352268121,1739021459429,-500.0,0.00010665,2]
[352268122,1739021459438,-500.0,0.00010665,2]
[352268123,1739021459447,-908.88,0.00010665,2]
[352268124,1739021459457,-500.0,0.00010665,2]
[352268125,1739021459466,-978.2,0.00010665,2]
[352268126,1739021459476,-908.42,0.00010665,2]
[352268127,1739021459485,-732.41,0.00010665,2]
[352268128,1739021459495,-500.0,0.00010665,2]
[352268129,1739021459504,-1214.33,0.00010665,2]
[352268130,1739021459514,-554.39,0.00010665,2]
[352268131,1739021459523,-1010.15,0.00010665,2]
[352268132,1739021459532,-2428.03,0.00010665,2]
[352268133,1739021459543,-500.0,0.00010665,2]
[352268134,1739021459553,-884.5,0.00010665,2]
[352268135,1739021459564,-1200.16,0.00010665,2]
[352268136,1739021459575,-5420.56,0.00010665,2]
[352268137,1739021459585,-1258.75,0.00010665,2]
[352268138,1739021459596,-1118.69,0.00010665,2]
[352268139,1739021459606,-1588.33,0.00010665,2]
[352268140,1739021459617,-896.11,0.00010665,2]
[352268141,1739021459627,-500.0,0.00010665,2]
[352268142,1739021459637,-794.47,0.00010665,2]
[352268143,1739021459647,-1439.17,0.00010665,2]
[352268144,1739021459657,-500.0,0.00010665,2]
[352268145,1739021459666,-571.6,0.00010665,2]
[352268146,1739021459676,-920.36,0.00010665,2]
[352268147,1739021459686,-1334.12,0.00010665,2]
[352268148,1739021459696,-1217.52,0.00010665,2]
[352268149,1739021459707,-1131.43,0.00010665,2]
[352268150,1739021459717,-588.17,0.00010665,2]
[352268151,1739021459726,-991.46,0.00010665,2]
[352268152,1739021459736,-500.0,0.00010665,2]
[352268153,1739021459746,-1017.16,0.00010665,2]
[352268154,1739021459756,-733.79,0.00010665,2]
[352268155,1739021459767,-3270.86,0.00010665,2]
[352268156,1739021459776,-569.88,0.00010665,2]
[352268157,1739021459787,-1422.78,0.00010665,2]
[352268158,1739021459797,-1321.24,0.00010665,2]
[352268159,1739021459807,-500.0,0.00010665,2]
[352268160,1739021459817,-2291.76,0.00010665,2]
[352268161,1739021459826,-1009.53,0.00010665,2]
[352268162,1739021459836,-500.0,0.00010665,2]
[352268163,1739021459849,-1020.34,0.00010665,2]
[352268164,1739021459859,-560.48,0.00010665,2]
[352268165,1739021459870,-518.57,0.00010665,2]
[352268166,1739021459879,-888.74,0.00010665,2]
[352268167,1739021459889,-6776.61,0.00010665,2]
[352268168,1739021459899,-1427.19,0.00010665,2]
[352268169,1739021459909,-500.0,0.00010665,2]
[352268170,1739021459919,-2658.58,0.00010665,2]
[352268171,1739021459929,-1649.01,0.00010665,2]
[352268172,1739021459939,-797.73,0.00010665,2]
[352268173,1739021459949,-969.25,0.00010665,2]
[352268174,1739021459959,-1236.49,0.00010665,2]
[352268175,1739021459970,-1376.87,0.00010665,2]
[352268176,1739021459980,-1150.23,0.00010665,2]
[352268177,1739021459990,-500.0,0.00010665,2]
[352268178,1739021460000,-1458.93,0.00010665,2]
[352268179,1739021460010,-2061.0,0.00010665,2]
[352268180,1739021460020,-1575.14,0.00010665,2]
[352268181,1739021460031,-1087.69,0.00010665,2]
[352268182,1739021460041,-1008.68,0.00010665,2]
[352268183,1739021460052,-1024.98,0.00010665,2]
[352268184,1739021460062,-1276.35,0.00010665,2]
[352268185,1739021460073,-5315.42,0.00010665,2]
[352268186,1739021460083,-500.0,0.00010665,2]
[352268187,1739021460095,-1639.56,0.00010665,2]
[352268188,1739021460106,-887.92,0.00010665,2]
[352268189,1739021460116,-866.96,0.00010665,2]
[352268190,1739021460126,-1491.22,0.00010665,2]
[352268191,1739021460136,-500.0,0.00010665,2]
[352268192,1739021460147,-2150.42,0.00010665,2]
[352268193,1739021460157,-1999.01,0.00010665,2]
[352268194,1739021460167,-500.0,0.00010665,2]
[352268195,1739021460178,-500.0,0.00010665,2]
[352268196,1739021460188,-500.0,0.00010665,2]
[352268197,1739021460200,-1238.85,0.00010665,2]
[352268198,1739021460214,-500.0,0.00010665,2]
[352268199,1739021460224,-1772.33,0.00010665,2]
[352268200,1739021460235,-723.22,0.00010665,2]
[352268201,1739021460245,-524.48,0.00010665,2]
[352268202,1739021460257,-1821.75,0.00010665,2]
[352268203,1739021460268,-500.0,0.00010665,2]
[352268204,1739021460279,-2569.9,0.00010665,2]
[352268205,1739021460289,-500.0,0.00010665,2]
[352268206,1739021460299,-979.84,0.00010665,2]
[352268207,1739021460309,-1589.1,0.00010665,2]
[352268208,1739021460319,-500.0,0.00010665,2]
[352268209,1739021460329,-3567.02,0.00010665,2]
[352268210,1739021460339,-500.0,0.00010665,2]
[352268211,1739021460351,-500.0,0.00010665,2]
[352268212,1739021460361,-646.94,0.00010665,2]
[352268213,1739021460372,-1268.56,0.00010665,2]
[352268214,1739021460382,-1774.78,0.00010665,2]
[352268215,1739021460392,-500.0,0.00010665,2]
[352268216,1739021460403,-1824.03,0.00010665,2]
[352268217,1739021460413,-2166.29,0.00010665,2]
[352268218,1739021460424,-718.34,0.00010665,2]
[352268219,1739021460435,-1000.0,0.00010665,2]
[352268220,1739021460445,-2367.62,0.00010665,2]
[352268221,1739021460455,-967.44,0.00010665,2]
[352268222,1739021460466,-996.19,0.00010665,2]
[352268223,1739021460477,-978.89,0.00010665,2]
[352268224,1739021460487,-1164.39,0.00010665,2]
[352268225,1739021460497,-1326.59,0.00010665,2]
[352268226,1739021460507,-1201.48,0.00010665,2]
[352268227,1739021460517,-2912.96,0.00010665,2]
[352268228,1739021460527,-1010.66,0.00010665,2]
[352268229,1739021460538,-223.72414137,0.00010665,2]
[352268230,1739021460549,-1794.88,0.00010665,2]
[352268231,1739021460559,-1069.33,0.00010665,2]
[352268232,1739021460570,-678.89,0.00010665,2]
[352268233,1739021460580,-1002.55,0.00010665,2]
[352268234,1739021460590,-2141.6,0.00010665,2]
[352268235,1739021460602,-564.37,0.00010665,2]
[352268236,1739021460612,-706.03,0.00010665,2]
[352268237,1739021460622,-670.39,0.00010665,2]
[352268238,1739021460633,-830.2,0.00010665,2]
[352268239,1739021460643,-500.0,0.00010666,2]
[352268240,1739021460652,-500.0,0.00010666,2]
[352268241,1739021460662,-500.0,0.00010666,2]
[352268242,1739021460673,-500.0,0.00010666,2]
[352268243,1739021460683,-209.1945975,0.00010666,2]
[352268244,1739021460692,-500.0,0.00010666,2]
[352268245,1739021460702,-500.0,0.00010666,2]
[352268246,1739021460713,-500.0,0.00010666,2]
[352268247,1739021460723,-500.0,0.00010666,2]
[352268248,1739021460733,-500.0,0.00010666,2]
[352268249,1739021460743,-500.0,0.00010666,2]
[352268250,1739021460752,-500.0,0.00010666,2]
[352268251,1739021460762,-500.0,0.00010666,2]
[352268252,1739021460772,-509.84,0.00010666,2]
[352268253,1739021460782,-562.48549259,0.00010666,2]
[352268254,1739021460792,-513.59740367,0.00010666,2]
[352268255,1739021460802,-500.0,0.00010666,2]
[352268256,1739021460811,-1034.4,0.00010666,2]
[352268257,1739021460821,-500.0,0.00010666,2]
[352268258,1739021460831,-1017.61,0.00010666,2]
[352268259,1739021460841,-1000.22,0.00010666,2]
[352268260,1739021460851,-500.0,0.00010666,2]
[352268261,1739021460861,-500.0,0.00010666,2]
[352268262,1739021460870,-892.76,0.00010666,2]
[352268263,1739021460880,-500.0,0.00010666,2]
[352268264,1739021460890,-500.0,0.00010666,2]
[352268265,1739021460900,-500.0,0.00010666,2]
[352268266,1739021460910,-500.0,0.00010666,2]
[352268267,1739021460920,-538.2,0.00010666,2]
[352268268,1739021460931,-150.57633488,0.00010702,2]
[352268269,1739021460941,-1000.0,0.00010712,2]
[352268270,1739021460950,-150.57633488,0.0001076,2]